fUSD/lending_fUSD_20250407
["ID","MTS","AMOUNT","RATE_DAILY","PERIOD"]
[357377143,1744023063993,-500.0,0.00052328,120]
[357377144,1744023064002,-500.0,0.00052328,120]
[357377145,1744023064012,-694.36,0.00052328,120]
[357377146,1744023064023,-523.02899961,0.00052328,120]
[357377147,1744023064033,-759.01,0.00052328,120]
[357377148,1744023064043,-500.0,0.00052328,120]
[357377149,1744023064052,-746.91,0.00052328,120]
[357377150,1744023064062,-500.0,0.00052328,120]
[357377151,1744023064071,-500.0,0.00052328,120]
[357377152,1744023064081,-500.0,0.00052328,120]
[357377153,1744023064091,-519.71,0.00052328,120]
[357377154,1744023064100,-500.0,0.00052328,120]
[357377155,1744023064110,-649.36,0.00052328,120]
[357377156,1744023064119,-500.0,0.00052328,120]
[357377157,1744023064129,-890.46,0.00052328,120]
[357377158,1744023064139,-500.0,0.00052328,120]
[357377159,1744023064148,-500.0,0.00052328,120]
[357377160,1744023064158,-1791.13,0.00052328,120]
[357377161,1744023064167,-517.06,0.00052328,120]
[357377162,1744023064177,-619.51,0.00052328,120]
[357377163,1744023064186,-613.77,0.00052328,120]
[357377164,1744023064196,-613.15,0.00052328,120]
[357377165,1744023064205,-500.0,0.00052328,120]
[357377166,1744023064214,-1245.5,0.00052328,120]
[357377167,1744023064224,-500.0,0.00052328,120]
[357377168,1744023064232,-863.59,0.00052328,120]
[357377169,1744023064241,-500.0,0.00052328,120]
[357377170,1744023064250,-500.0,0.00052328,120]
[357377171,1744023064259,-745.31,0.00052328,120]
[357377172,1744023064268,-1058.44,0.00052328,120]
[357377173,1744023064432,-800.07,0.00052328,120]
[357377174,1744023064442,-500.0,0.00052328,120]
[357377175,1744023064452,-500.0,0.00052328,120]
[357377176,1744023064462,-500.0,0.00052328,120]
[357377177,1744023064472,-1152.18,0.00052328,120]
[357377178,1744023064482,-641.26,0.00052328,120]
[357377179,1744023064492,-554.86764033,0.00052328,120]
[357377180,1744023064502,-599.49,0.00052328,120]
[357377181,1744023064512,-1620.72,0.00052328,120]
[357377182,1744023064522,-1827.15,0.00052328,120]
[357377183,1744023064532,-500.0,0.00052328,120]
[357377184,1744023064541,-547.60553462,0.00052328,120]
[357377185,1744023064550,-610.58843068,0.00052328,120]
[357377186,1744023064561,-500.0,0.00052328,120]
[357377187,1744023064571,-500.0,0.00052328,120]
[357377188,1744023064580,-546.18,0.00052328,120]
[357377189,1744023064590,-608.56,0.00052328,120]
[357377190,1744023064600,-500.0,0.00052328,120]
[357377191,1744023064610,-500.0,0.00052328,120]
[357377192,1744023064620,-768.32,0.00052328,120]
[357377193,1744023064630,-500.0,0.00052328,120]
[357377194,1744023064639,-500.0,0.00052328,120]
[357377195,1744023064648,-500.0,0.00052328,120]
[357377196,1744023064658,-527.3004024,0.00052328,120]
[357377197,1744023064669,-500.0,0.00052328,120]
[357377198,1744023064679,-736.33,0.00052328,120]
[357377199,1744023064690,-500.0,0.00052328,120]
[357377200,1744023064699,-1058.97,0.00052328,120]
[357377201,1744023064709,-536.2972115,0.00052328,120]
[357377202,1744023064718,-500.0,0.00052328,120]
[357377203,1744023064727,-1554.26,0.00052328,120]
[357377204,1744023064736,-852.5,0.00052328,120]
[357377205,1744023064745,-500.0,0.00052328,120]
[357377206,1744023064754,-500.0,0.00052328,120]
[357377207,1744023064764,-506.29274565,0.00052328,120]
[357377208,1744023064773,-500.0,0.00052328,120]
[357377209,1744023064784,-909.99,0.00052328,120]
[357377210,1744023064797,-1136.92,0.00052328,120]
[357377211,1744023064807,-917.77,0.00052328,120]
[357377212,1744023064816,-500.0,0.00052328,120]
[357377213,1744023064827,-500.0,0.00052328,120]
[357377214,1744023064836,-500.0,0.00052328,120]
[357377215,1744023064846,-1269.1,0.00052328,120]
[357377216,1744023064855,-500.0,0.00052328,120]
[357377217,1744023064866,-540.97,0.00052328,120]
[357377218,1744023064875,-1123.58,0.00052328,120]
[357377219,1744023064885,-500.0,0.00052328,120]
[357377220,1744023064894,-500.0,0.00052328,120]
[357377221,1744023064904,-500.0,0.00052328,120]
[357377222,1744023064914,-500.0,0.00052328,120]
[357377223,1744023064924,-626.76,0.00052328,120]
[357377224,1744023064934,-691.99,0.00052328,120]
[357377225,1744023064943,-500.0,0.00052328,120]
[357377226,1744023064952,-552.2307825,0.00052328,120]
[357377227,1744023064962,-500.0,0.00052328,120]
[357377228,1744023064971,-3064.34,0.00052328,120]
[357377229,1744023064980,-2424.54,0.00052328,120]
[357377230,1744023064990,-500.0,0.00052328,120]
[357377231,1744023065000,-500.0,0.00052328,120]
[357377232,1744023065009,-500.0,0.00052328,120]
[357377233,1744023065018,-1821.44,0.00052328,120]
[357377234,1744023065028,-891.38,0.00052328,120]
[357377235,1744023065038,-500.0,0.00052328,120]
[357377236,1744023065047,-622.38,0.00052328,120]
[357377237,1744023065056,-856.39,0.00052328,120]
[357377238,1744023065065,-500.0,0.00052328,120]
[357377239,1744023065077,-500.0,0.00052328,120]
[357377240,1744023065086,-500.0,0.00052328,120]
[357377241,1744023065096,-500.0,0.00052328,120]
[357377242,1744023065105,-500.0,0.00052328,120]
[357377243,1744023065115,-1876.34,0.00052328,120]
[357377244,1744023065124,-500.0,0.00052328,120]
[357377245,1744023065134,-500.0,0.00052328,120]
[357377246,1744023065143,-500.0,0.00052328,120]
[357377247,1744023065153,-500.0,0.00052328,120]
[357377248,1744023065163,-500.0,0.00052328,120]
[357377249,1744023065173,-500.0,0.00052328,120]
[357377250,1744023065182,-500.0,0.00052328,120]
[357377251,1744023065191,-500.0,0.00052328,120]
[357377252,1744023065201,-771.18,0.00052328,120]
[357377253,1744023065210,-500.0,0.00052328,120]
[357377254,1744023065219,-333.73591141,0.00052328,120]
[357377255,1744023065228,-1178.95,0.00052328,120]
[357377256,1744023065238,-500.0,0.00052328,120]
[357377257,1744023065247,-1204.08,0.00052328,120]
[357377258,1744023065257,-500.0,0.00052328,120]
[357377259,1744023065266,-712.94,0.00052328,120]
[357377260,1744023065276,-500.0,0.00052328,120]
[357377261,1744023065286,-500.0,0.00052328,120]
[357377262,1744023065296,-1000.0,0.00052328,120]
[357377263,1744023065305,-668.09,0.00052328,120]
[357377264,1744023065315,-500.0,0.00052328,120]
[357377265,1744023065328,-500.0,0.00052328,120]
[357377266,1744023065338,-749.4,0.00052328,120]
[357377267,1744023065348,-500.0,0.00052328,120]
[357377268,1744023065358,-500.0,0.00052328,120]
[357377269,1744023065367,-500.0,0.00052328,120]
[357377270,1744023065376,-511.93,0.00052328,120]
[357377271,1744023065386,-577.2,0.00052328,120]
[357377272,1744023065395,-500.0,0.00052328,120]
[357377273,1744023065405,-2142.78,0.00052328,120]
[357377274,1744023065414,-543.19032479,0.00052328,120]
[357377275,1744023065427,-500.0,0.00052328,120]
[357377276,1744023065449,-500.0,0.00052328,120]
[357377277,1744023065466,-785.05,0.00052328,120]
[357377278,1744023065486,-1319.22,0.00052328,120]
[357377279,1744023065502,-500.0,0.00052328,120]
[357377280,1744023065519,-548.16,0.00052328,120]
[357377281,1744023065538,-500.0,0.00052328,120]
[357377282,1744023065559,-500.0,0.00052328,120]
[357377283,1744023065580,-647.38,0.00052328,120]
[357377284,1744023065598,-500.0,0.00052328,120]
[357377285,1744023065616,-538.94042563,0.00052328,120]
[357377286,1744023065633,-282.02,0.00052328,120]
[357377287,1744023065648,-500.0,0.00052328,120]
[357377288,1744023065669,-500.0,0.00052328,120]
[357377289,1744023065681,-500.0,0.00052328,120]
[357377290,1744023065700,-500.0,0.00052328,120]
[357377291,1744023065715,-910.2,0.00052328,120]
[357377292,1744023065731,-500.0,0.00052328,120]
[357377293,1744023065748,-500.0,0.00052328,120]
[357377294,1744023065765,-554.61900703,0.00052328,120]
[357377295,1744023065782,-500.0,0.00052328,120]
[357377296,1744023065802,-500.0,0.00052328,120]
[357377297,1744023065818,-500.0,0.00052328,120]
[357377298,1744023065842,-526.68090429,0.00052328,120]
[357377299,1744023065863,-500.0,0.00052328,10]
[357377300,1744023065882,-670.93,0.00052328,120]
[357377301,1744023065899,-500.0,0.00052328,120]
[357377302,1744023065914,-690.75,0.00052328,120]
[357377303,1744023065929,-500.0,0.00052328,120]
[357377304,1744023065945,-500.0,0.00052328,120]
[357377305,1744023065961,-685.93,0.00052328,120]
[357377306,1744023065977,-561.99,0.00052328,120]
[357377307,1744023065991,-500.0,0.00052328,120]
[357377308,1744023066006,-743.24,0.00052328,120]
[357377309,1744023066021,-500.0,0.00052328,120]
[357377310,1744023066036,-500.0,0.00052328,120]
[357377311,1744023066051,-500.0,0.00052328,120]
[357377312,1744023066065,-500.0,0.00052328,120]
[357377313,1744023066085,-719.92,0.00052328,120]
[357377314,1744023066099,-549.77,0.00052328,120]
[357377315,1744023066115,-500.0,0.00052328,120]
[357377316,1744023066130,-781.95,0.00052328,120]
[357377317,1744023066145,-500.0,0.00052328,120]
[357377318,1744023066160,-826.61,0.00052328,120]
[357377319,1744023066175,-500.0,0.00052328,120]
[357377320,1744023066190,-500.0,0.00052328,120]
[357377321,1744023066204,-500.0,0.00052328,120]
[357377322,1744023066219,-500.0,0.00052328,120]
[357377323,1744023066234,-500.0,0.00052328,120]
[357377324,1744023066249,-500.0,0.00052328,120]
[357377325,1744023066264,-500.0,0.00052328,120]
[357377326,1744023066279,-500.0,0.00052328,120]
[357377327,1744023066294,-1017.91,0.00052328,120]
[357377328,1744023066309,-500.0,0.00052328,120]
[357377329,1744023066324,-378.1224733,0.00052328,120]
[357377330,1744023066339,-702.54,0.00052328,120]
[357377331,1744023066354,-500.0,0.00052328,120]
[357377332,1744023066369,-1320.02,0.00052328,120]
[357377333,1744023066384,-500.0,0.00052328,120]
[357377334,1744023066399,-653.59,0.00052328,120]
[357377335,1744023066413,-111949.85,0.00052328,7]
[357377336,1744023066428,-500.0,0.00052328,120]
[357377337,1744023066443,-500.0,0.00052328,120]
[357377338,1744023066458,-500.0,0.00052328,120]
[357377339,1744023066473,-1302.73,0.00052328,120]
[357377340,1744023066488,-981.13,0.00052328,120]
[357377341,1744023066503,-500.0,0.00052328,120]
[357377342,1744023066517,-13506.43,0.00052328,120]
[357377343,1744023066533,-559.54979666,0.00052328,120]
[357377344,1744023066549,-500.0,0.00052328,120]
[357377345,1744023066565,-500.0,0.00052328,120]
[357377346,1744023066580,-1221.52,0.00052328,120]
[357377347,1744023066596,-500.0,0.00052328,120]
[357377348,1744023066612,-1073.31,0.00052328,120]
[357377349,1744023066628,-500.0,0.00052328,120]
[357377350,1744023066643,-571.49986893,0.00052328,120]
[357377351,1744023066658,-526.32,0.00052328,120]
[357377352,1744023066674,-500.0,0.00052328,120]
[357377353,1744023066690,-500.0,0.00052328,120]
[357377354,1744023066706,-1927.85,0.00052328,120]
[357377355,1744023066722,-1189.09,0.00052328,120]
[357377356,1744023066738,-521.86121542,0.00052328,120]
[357377357,1744023066754,-500.0,0.00052328,120]
[357377358,1744023066769,-500.0,0.00052328,120]
[357377359,1744023066787,-1387.98,0.00052328,120]
[357377360,1744023066804,-3865.46,0.00052328,120]
[357377361,1744023066818,-500.0,0.00052328,120]
[357377362,1744023066841,-515.89,0.00052328,120]
[357377363,1744023066859,-500.0,0.00052328,120]
[357377364,1744023066876,-500.0,0.00052328,120]
[357377365,1744023066894,-500.0,0.00052328,120]
[357377366,1744023066911,-525.58817813,0.00052328,120]
[357377367,1744023066929,-1447.88,0.00052328,120]
[357377368,1744023066945,-500.0,0.00052328,120]
[357377369,1744023066963,-500.0,0.00052328,120]
[357377370,1744023066973,-500.0,0.00052328,120]
[357377371,1744023066983,-500.0,0.00052328,120]
[357377372,1744023066994,-525.78718233,0.00052328,120]
[357377373,1744023067005,-1786.21,0.00052328,120]
[357377374,1744023067015,-536.69,0.00052328,120]
[357377375,1744023067027,-1781.79,0.00052328,100]
[357377376,1744023067037,-509.3562687,0.00052328,120]
[357377377,1744023067047,-732.06,0.00052328,120]
[357377378,1744023067058,-500.0,0.00052328,120]
[357377379,1744023067068,-500.0,0.00052328,120]
[357377380,1744023067083,-500.0,0.00052328,120]
[357377381,1744023067384,-2754.6,0.00052328,120]
[357377382,1744023067406,-500.0,0.00052328,120]
[357377383,1744023067415,-595.94,0.00052328,120]
[357377384,1744023067425,-1933.85,0.00052328,120]
[357377385,1744023067434,-1297.31,0.00052328,2]
[357377386,1744023067443,-500.0,0.00052328,120]
[357377387,1744023067452,-500.0,0.00052328,120]
[357377388,1744023067462,-200.0,0.00052328,7]
[357377389,1744023067471,-1029.49,0.00052328,120]
[357377390,1744023067480,-500.0,0.00052328,120]
[357377391,1744023067490,-500.0,0.00052328,120]
[357377392,1744023067499,-500.0,0.00052328,120]
[357377393,1744023067509,-500.0,0.00052328,120]
[357377394,1744023067518,-597.57,0.00052328,120]
[357377395,1744023067528,-500.0,0.00052328,120]
[357377396,1744023067537,-500.0,0.00052328,120]
[357377397,1744023067547,-641.3387083,0.00052328,120]
[357377398,1744023067557,-188.49601191,0.00052328,120]
[357377399,1744023067566,-1732.78,0.00052328,120]
[357377400,1744023067577,-1319.4,0.00052328,120]
[357377401,1744023067587,-1258.11,0.00052328,120]
[357377402,1744023067596,-500.0,0.00052328,120]
[357377403,1744023067606,-500.0,0.00052328,120]
[357377404,1744023067615,-500.0,0.00052328,120]
[357377405,1744023067624,-500.0,0.00052328,120]
[357377406,1744023067634,-500.0,0.00052328,120]
[357377407,1744023067644,-835.36,0.00052328,120]
[357377408,1744023067654,-500.0,0.00052328,120]
[357377409,1744023067664,-500.0,0.00052328,120]
[357377410,1744023067674,-500.0,0.00052328,120]
[357377411,1744023067684,-500.0,0.00052328,120]
[357377412,1744023067694,-500.0,0.00052328,120]
[357377413,1744023067704,-963.3,0.00052328,120]
[357377414,1744023067713,-500.0,0.00052328,120]
[357377415,1744023067723,-585.2,0.00052328,120]
[357377416,1744023067733,-675.5,0.00052328,120]
[357377417,1744023067742,-646.89,0.00052328,120]
[357377418,1744023067751,-1608.07,0.00052328,120]
[357377419,1744023067761,-641.84,0.00052328,120]
[357377420,1744023067771,-500.0,0.00052328,120]
[357377421,1744023067780,-2591.89,0.00052328,120]
[357377422,1744023067790,-839.69,0.00052328,30]
[357377423,1744023067802,-4420.92,0.00052328,120]
[357377424,1744023067812,-1773.29,0.00052328,120]
[357377425,1744023067822,-500.0,0.00052328,120]
[357377426,1744023067835,-500.0,0.00052328,120]
[357377427,1744023067845,-500.0,0.00052328,120]
[357377428,1744023067854,-445.85,0.00052328,120]
[357377429,1744023067864,-500.0,0.00052328,120]
[357377430,1744023067875,-500.0,0.00052328,120]
[357377431,1744023067885,-500.0,0.00052328,120]
[357377432,1744023067894,-799.0,0.00052328,120]
[357377433,1744023067904,-598.82886249,0.00052328,120]
[357377434,1744023067913,-685.79,0.00052328,120]
[357377435,1744023067923,-2093.1,0.00052328,120]
[357377436,1744023067933,-535.24399247,0.00052328,120]
[357377437,1744023067942,-690.21,0.00052328,120]
[357377438,1744023067951,-500.0,0.00052328,120]
[357377439,1744023067961,-989.16,0.00052328,120]
[357377440,1744023067971,-298.47907598,0.00052328,120]
[357377441,1744023067979,-500.0,0.00052328,120]
[357377442,1744023067988,-500.0,0.00052328,120]
[357377443,1744023067997,-500.0,0.00052328,120]
[357377444,1744023068006,-500.0,0.00052328,120]
[357377445,1744023068015,-500.0,0.00052328,120]
[357377446,1744023068024,-856.43,0.00052328,120]
[357377447,1744023068033,-1233.75,0.00052328,120]
[357377448,1744023068042,-500.0,0.00052328,120]
[357377449,1744023068051,-500.0,0.00052328,120]
[357377450,1744023068060,-963.77,0.00052328,120]
[357377451,1744023068069,-500.0,0.00052328,120]
[357377452,1744023068080,-500.0,0.00052328,120]
[357377453,1744023068089,-814.82,0.00052328,120]
[357377454,1744023068098,-500.0,0.00052328,120]
[357377455,1744023068107,-627.87352412,0.00052328,120]
[357377456,1744023068116,-500.0,0.00052328,120]
[357377457,1744023068125,-572.45,0.00052328,120]
[357377458,1744023068134,-850.99,0.00052328,120]
[357377459,1744023068143,-500.0,0.00052328,120]
[357377460,1744023068152,-834.45,0.00052328,120]
[357377461,1744023068161,-877.75,0.00052328,120]
[357377462,1744023068170,-500.0,0.00052328,120]
[357377463,1744023068179,-500.0,0.00052328,120]
[357377464,1744023068189,-553.15,0.00052328,120]
[357377465,1744023068198,-1339.14,0.00052328,120]
[357377466,1744023068207,-500.0,0.00052328,120]
[357377467,1744023068216,-500.0,0.00052328,120]
[357377468,1744023068225,-500.0,0.00052328,120]
[357377469,1744023068235,-500.0,0.00052328,120]
[357377470,1744023068244,-500.0,0.00052328,120]
[357377471,1744023068254,-500.0,0.00052328,120]
[357377472,1744023068263,-1519.64,0.00052328,120]
[357377473,1744023068272,-500.0,0.00052328,120]
[357377474,1744023068282,-500.0,0.00052328,120]
[357377475,1744023068291,-1000.0,0.00052328,120]
[357377476,1744023068300,-500.0,0.00052328,120]
[357377477,1744023068310,-500.0,0.00052328,120]
[357377478,1744023068319,-1045.34,0.00052328,120]
[357377479,1744023068331,-2000.0,0.00052328,30]
[357377480,1744023068340,-670.45,0.00052328,120]
[357377481,1744023068350,-565.13129722,0.00052328,120]
[357377482,1744023068359,-500.0,0.00052328,120]
[357377483,1744023068369,-500.0,0.00052328,120]
[357377484,1744023068378,-3500.0,0.00052328,10]
[357377485,1744023068388,-659.1,0.00052328,5]
[357377486,1744023068398,-500.0,0.00052328,120]
[357377487,1744023068407,-500.0,0.00052328,120]
[357377488,1744023068416,-1558.87,0.00052328,120]
[357377489,1744023068425,-538.29206157,0.00052328,120]
[357377490,1744023068435,-1092.32,0.00052328,120]
[357377491,1744023068444,-667.16,0.00052328,120]
[357377492,1744023068453,-1041.78,0.00052328,120]
[357377493,1744023068463,-809.41,0.00052328,120]
[357377494,1744023068472,-500.0,0.00052328,120]
[357377495,1744023068482,-500.0,0.00052328,120]
[357377496,1744023068491,-500.0,0.00052328,120]
[357377497,1744023068501,-500.0,0.00052328,120]
[357377498,1744023068511,-500.0,0.00052328,120]
[357377499,1744023068521,-500.0,0.00052328,120]
[357377500,1744023068530,-560.67,0.00052328,120]
[357377501,1744023068540,-645.62,0.00052328,120]
[357377502,1744023068549,-879.67,0.00052328,120]
[357377503,1744023068559,-500.0,0.00052328,120]
[357377504,1744023068568,-203.95173874,0.00052328,120]
[357377505,1744023068579,-500.0,0.00052328,120]
[357377506,1744023068589,-514.37046497,0.00052328,120]
[357377507,1744023068598,-500.0,0.00052328,2]
[357377508,1744023068608,-762.9,0.00052328,120]
[357377509,1744023068617,-297.02542955,0.00052328,120]
[357377510,1744023068627,-500.0,0.00052328,120]
[357377511,1744023068636,-500.0,0.00052328,120]
[357377512,1744023068645,-570.66,0.00052328,120]
[357377513,1744023068654,-500.0,0.00052328,120]
[357377514,1744023068663,-320.90447198,0.00052328,120]
[357377515,1744023068673,-500.0,0.00052328,120]
[357377516,1744023068682,-500.0,0.00052328,120]
[357377517,1744023068692,-938.08,0.00052328,120]
[357377518,1744023068701,-500.0,0.00052328,120]
[357377519,1744023068711,-500.0,0.00052328,120]
[357377520,1744023068722,-500.0,0.00052328,2]
[357377521,1744023068731,-790.59,0.00052328,120]
[357377522,1744023068741,-500.0,0.00052328,120]
[357377523,1744023068750,-1570.59,0.00052328,120]
[357377524,1744023068760,-1043.73,0.00052328,120]
[357377525,1744023068770,-500.0,0.00052328,120]
[357377526,1744023068779,-642.8,0.00052328,120]
[357377527,1744023068793,-383.49410279,0.00052328,120]
[357377528,1744023068803,-500.0,0.00052328,120]
[357377529,1744023068812,-500.0,0.00052328,120]
[357377530,1744023068822,-550.65,0.00052328,120]
[357377531,1744023068833,-514.24,0.00052328,120]
[357377532,1744023068843,-500.0,0.00052328,120]
[357377533,1744023068852,-500.0,0.00052328,120]
[357377534,1744023068862,-500.0,0.00052328,120]
[357377535,1744023068873,-1363.75,0.00052328,120]
[357377536,1744023068885,-500.0,0.00052328,120]
[357377537,1744023068894,-500.0,0.00052328,120]
[357377538,1744023068908,-2190.72,0.00052328,120]
[357377539,1744023068917,-500.0,0.00052328,120]
[357377540,1744023068928,-1853.66,0.00052328,120]
[357377541,1744023068938,-1033.91,0.00052328,120]
[357377542,1744023068947,-500.0,0.00052328,120]
[357377543,1744023068956,-649.55,0.00052328,120]
[357377544,1744023068967,-500.0,0.00052328,120]
[357377545,1744023068976,-500.0,0.00052328,120]
[357377546,1744023068985,-1334.19,0.00052328,120]
[357377547,1744023068995,-995.01,0.00052328,120]
[357377548,1744023069004,-500.0,0.00052328,120]
[357377549,1744023069014,-500.0,0.00052328,120]
[357377550,1744023069023,-500.0,0.00052328,120]
[357377551,1744023069033,-500.0,0.00052328,120]
[357377552,1744023069042,-500.0,0.00052328,120]
[357377553,1744023069052,-1330.59,0.00052328,120]
[357377554,1744023069061,-500.0,0.00052328,120]
[357377555,1744023069070,-1474.81,0.00052328,120]
[357377556,1744023069080,-500.0,0.00052328,120]
[357377557,1744023069090,-1067.6,0.00052328,120]
[357377558,1744023069099,-572.58,0.00052328,120]
[357377559,1744023069108,-564.11,0.00052328,120]
[357377560,1744023069118,-500.0,0.00052328,120]
[357377561,1744023069127,-653.83,0.00052328,120]
[357377562,1744023069137,-922.8,0.00052328,120]
[357377563,1744023069146,-500.0,0.00052328,120]
[357377564,1744023069155,-500.0,0.00052328,120]
[357377565,1744023069165,-500.0,0.00052328,120]
[357377566,1744023069175,-500.0,0.00052328,120]
[357377567,1744023069185,-500.0,0.00052328,120]
[357377568,1744023069194,-500.0,0.00052328,120]
[357377569,1744023069204,-500.0,0.00052328,120]
[357377570,1744023069213,-1074.53,0.00052328,120]
[357377571,1744023069223,-1701.55,0.00052328,120]
[357377572,1744023069232,-769.46,0.00052328,120]
[357377573,1744023069242,-641.56,0.00052328,120]
[357377574,1744023069252,-500.0,0.00052328,120]
[357377575,1744023069261,-500.0,0.00052328,120]
[357377576,1744023069271,-2000.0,0.00052356,120]
[357377577,1744023069280,-2000.0,0.00052356,120]
[357377578,1744023069290,-2000.0,0.00052356,120]
[357377579,1744023069299,-2000.0,0.00052356,120]
[357377580,1744023069308,-902.12177626,0.00052356,120]
[357377581,1744023069317,-150.0,0.00052357,7]
[357377582,1744023069329,-301.64931533,0.00052373,10]
[357377583,1744023069338,-1000.0,0.000524,7]
[357377584,1744023069348,-300.0,0.00052408,120]
[357377585,1744023069358,-150.0,0.00052412,7]
[357377586,1744023069367,-150.0,0.00052458,7]
[357377587,1744023069377,-7779.87665423,0.00052466,15]
[357377588,1744023069386,-150.0,0.00052483,7]
[357377589,1744023069396,-154.040718,0.00052498,120]
[357377590,1744023069406,-177.32224816,0.00052502,120]
[357377591,1744023069415,-151.0,0.00052512,30]
[357377592,1744023069425,-200.0,0.0005252,15]
[357377593,1744023069434,-200.0,0.0005252,15]
[357377594,1744023069444,-150.0,0.00052562,7]
[357377595,1744023069453,-150.0,0.0005257,7]
[357377596,1744023069463,-273.81196517,0.00052592,7]
[357377597,1744023069473,-2000.0,0.000526,2]
[357377598,1744023069482,-300.0,0.00052601,30]
[357377599,1744023069492,-598.37,0.00052601,120]
[357377600,1744023069502,-598.37,0.00052601,120]
[357377601,1744023069511,-500.0,0.00052602,120]
[357377602,1744023069520,-500.0,0.00052602,120]
[357377603,1744023069529,-516.87,0.00052602,120]
[357377604,1744023069539,-551.74768496,0.00052602,120]
[357377605,1744023069549,-500.0,0.00052602,120]
[357377606,1744023069560,-759.89,0.00052602,120]
[357377607,1744023069569,-500.0,0.00052602,120]
[357377608,1744023069582,-500.0,0.00052602,120]
[357377609,1744023069592,-500.0,0.00052602,120]
[357377610,1744023069601,-500.0,0.00052602,120]
[357377611,1744023069611,-477.09300086,0.00052602,120]
[357377612,1744023069620,-185.46536726,0.00052602,120]
[357377613,1744023069630,-500.0,0.00052602,120]
[357377614,1744023069639,-500.0,0.00052602,120]
[357377615,1744023069648,-500.0,0.00052602,120]
[357377616,1744023069658,-519.69513572,0.00052602,120]
[357377617,1744023069668,-500.0,0.00052602,120]
[357377618,1744023069677,-500.0,0.00052602,120]
[357377619,1744023069687,-500.0,0.00052602,120]
[357377620,1744023069696,-816.06,0.00052602,120]
[357377621,1744023069706,-500.0,0.00052602,120]
[357377622,1744023069716,-500.0,0.00052602,120]
[357377623,1744023069725,-500.0,0.00052602,120]
[357377624,1744023069735,-500.0,0.00052602,120]
[357377625,1744023069744,-500.0,0.00052602,120]
[357377626,1744023069753,-525.42,0.00052602,120]
[357377627,1744023069763,-500.0,0.00052602,120]
[357377628,1744023069772,-500.0,0.00052602,120]
[357377629,1744023069782,-526.46,0.00052602,120]
[357377630,1744023069792,-500.0,0.00052602,120]
[357377631,1744023069805,-500.0,0.00052602,120]
[357377632,1744023069814,-541.64,0.00052602,120]
[357377633,1744023069824,-421.68567967,0.00052602,120]
[357377634,1744023069835,-500.0,0.00052602,120]
[357377635,1744023069844,-533.8259241,0.00052602,120]
[357377636,1744023069854,-500.0,0.00052602,120]
[357377637,1744023069863,-500.0,0.00052602,120]
[357377638,1744023069873,-500.0,0.00052602,30]
[357377639,1744023069882,-500.0,0.00052602,120]
[357377640,1744023069892,-500.0,0.00052602,120]
[357377641,1744023069901,-500.0,0.00052602,120]
[357377642,1744023069910,-500.0,0.00052602,120]